bitfinex-derivatives/quotes_ETHF0:USTF0_20250904
["timestamp","ask_amount","ask_price","bid_price","bid_amount"]
[1757028721109,0.5034,4326.3,4326.2,0.6986]
[1757028721409,0.7155,4326.3,4326.2,0.6986]
[1757028721899,0.2938,4326.6,4326.2,0.6986]
[1757028722103,0.2096,4326.4,4326.3,0.3012]
[1757028722304,0.7155,4326.4,4326.3,0.6986]
[1757028725917,0.2938,4326.7,4326.5,0.1201]
[1757028726118,0.2372,4327.0,4326.5,0.1201]
[1757028726119,0.2938,4326.9,4326.7,0.3012]
[1757028726416,0.7155,4326.9,4326.8,0.6986]
[1757028727414,0.7155,4326.9,4326.1,0.3012]
[1757028727616,0.2938,4326.2,4325.7,0.5392]
[1757028727917,0.7155,4325.8,4325.7,0.7366]
[1757028730718,3.2078,4326.6,4326.5,0.5361]
[1757028730919,0.6189,4327.4,4327.3,0.6986]
[1757028731111,0.7155,4327.4,4327.3,0.6986]
[1757028731710,0.4217,4327.4,4327.3,0.6986]
[1757028732118,3.5016,4328.0,4327.4,0.3012]
[1757028732323,0.1155,4327.9,4327.8,0.6986]
[1757028732620,0.1155,4327.9,4327.8,1.35647]
[1757028733318,3.4174,4328.6,4328.5,0.3974]
[1757028733623,0.2938,4328.4,4328.0,0.1201]
[1757028733924,0.2096,4328.1,4328.0,0.8187]
[1757028734116,0.7155,4328.1,4328.0,0.8187]
[1757028735125,0.4217,4328.1,4328.0,0.8187]
[1757028735816,0.2096,4328.1,4328.0,0.8187]
[1757028737622,0.7155,4328.1,4328.0,0.1974]
[1757028737825,0.7037,4327.7,4327.6,0.7437]
[1757028738419,0.7037,4327.7,4327.6,0.9457]
[1757028740032,0.3953,4327.7,4327.6,0.9457]
[1757028740422,0.7037,4327.7,4327.6,0.241]
[1757028740617,0.3084,4327.6,4327.4,0.241]
[1757028740820,0.83,4327.5,4327.4,0.4425]
[1757028741022,0.83,4327.5,4327.4,0.7352]
[1757028741729,0.83,4327.5,4327.4,0.9372]
[1757028743634,0.3084,4327.4,4326.9,0.2927]
[1757028743830,0.7037,4326.8,4326.7,0.2015]
[1757028745825,0.7037,4326.8,4326.7,0.4942]
[1757028747032,0.7037,4326.8,4326.7,0.2015]
[1757028747536,0.7037,4326.8,4326.7,0.4942]
[1757028747837,0.7037,4326.8,4326.6,0.241]
[1757028749638,0.3953,4326.8,4326.7,0.2015]
[1757028750031,0.3953,4326.8,4326.7,0.6962]
[1757028750335,0.7037,4326.8,4326.7,0.6962]
[1757028751145,0.7037,4326.8,4326.6,0.241]
[1757028751732,0.7037,4326.8,4326.6,0.5337]
[1757028752037,0.7037,4326.8,4326.7,0.4942]
[1757028752332,0.7037,4326.8,4326.7,0.6962]
[1757028752534,0.1155,4327.2,4327.1,0.6962]
[1757028752740,0.4347,4327.5,4327.1,0.6962]
[1757028753038,0.5085,4327.3,4327.2,0.6962]
[1757028753838,3.5234,4327.6,4327.5,0.1184]
[1757028754141,3.5234,4327.6,4327.5,0.8146]
[1757028754839,3.5234,4327.6,4327.5,1.0546]
[1757028755040,3.2078,4327.6,4327.5,1.0546]
[1757028756035,3.4079,4327.6,4327.5,1.0546]
[1757028758037,0.1155,4327.9,4327.6,0.2927]
[1757028758230,0.1155,4327.9,4327.8,0.6962]
[1757028758430,3.2078,4328.3,4327.8,0.4035]
[1757028758648,0.5085,4328.0,4327.9,0.4035]
[1757028758843,0.7037,4328.0,4327.9,0.6962]
[1757028759337,0.7037,4328.0,4327.9,0.2015]
[1757028759549,0.2001,4327.3,4327.2,0.6962]
[1757028759838,0.5085,4327.3,4327.2,0.9362]
[1757028760234,0.5085,4327.3,4327.2,0.6962]
[1757028760441,0.5085,4327.3,4327.0,0.1184]
[1757028760442,0.7037,4327.2,4327.1,0.4415]
[1757028760836,0.7037,4327.2,4327.1,0.7342]
[1757028762444,0.7037,4327.2,4327.1,0.24]
[1757028763039,0.7037,4327.2,4327.1,0.4415]
[1757028763345,0.7037,4327.2,4327.1,0.9362]
[1757028771451,0.3107,4327.1,4326.7,0.3004]
[1757028771646,0.7335,4326.6,4326.5,0.6952]
[1757028771845,0.7335,4326.6,4326.5,0.9342]
[1757028772852,0.1245,4327.0,4326.6,0.3004]
[1757028773051,0.5473,4327.0,4326.9,0.5004]
[1757028773555,0.858,4327.0,4326.9,0.5004]
[1757028775249,0.858,4327.0,4326.6,0.5394]
[1757028775444,0.4228,4326.8,4326.7,0.5004]
[1757028775648,0.7335,4326.8,4326.7,0.5004]
[1757028776354,0.7335,4326.8,4326.7,0.6952]
[1757028779358,0.2098,4326.8,4326.7,0.6952]
[1757028780259,0.1155,4327.0,4326.8,0.3004]
[1757028780461,0.1155,4327.0,4326.9,0.6952]
[1757028780759,0.9735,4327.0,4326.9,0.239]
[1757028781668,0.9735,4327.0,4326.9,0.439]
[1757028783571,0.9735,4327.0,4326.9,0.239]
[1757028784262,0.9735,4327.0,4326.6,0.3004]
[1757028784469,0.4228,4326.8,4326.7,0.238]
[1757028784768,0.7335,4326.8,4326.5,0.238]
[1757028785469,0.24,4327.0,4326.6,0.2]
[1757028785670,0.7335,4326.7,4326.6,0.5004]
[1757028786671,0.7335,4326.7,4326.6,0.2]
[1757028786860,0.7335,4326.7,4326.6,0.5004]
[1757028787065,0.7335,4326.7,4326.6,0.2]
[1757028787673,0.7335,4326.7,4326.6,0.5004]
[1757028787867,0.7335,4326.7,4326.6,0.6952]
[1757028790772,0.7335,4326.7,4326.5,0.238]
[1757028791281,0.3107,4326.6,4326.5,0.5384]
[1757028791966,0.7335,4326.6,4326.5,0.5004]
[1757028792170,0.7335,4326.6,4326.1,3.2078]
[1757028792171,0.7335,4326.2,4326.1,0.2]
[1757028792677,0.7335,4326.2,4326.1,0.5004]
[1757028792978,0.7335,4326.2,4326.1,0.2]
[1757028793276,0.7335,4326.2,4326.1,0.5004]
[1757028794177,0.7335,4326.2,4325.5,3.3262]
[1757028794381,0.4228,4325.7,4325.6,0.7384]
[1757028794676,0.7335,4325.7,4325.6,0.9332]
[1757028796873,0.7335,4325.7,4325.3,0.3004]
[1757028797077,0.4228,4325.4,4325.3,0.7384]
[1757028797274,0.7335,4325.4,4325.3,0.2]
[1757028797573,0.7335,4325.4,4325.0,3.3262]
[1757028797574,0.3107,4325.1,4325.0,3.2078]
[1757028797770,0.7108,4325.1,4325.0,0.7384]
[1757028798279,0.7108,4325.1,4325.0,0.238]
[1757028798784,0.7108,4325.1,4325.0,0.4406]
[1757028798974,0.7108,4325.1,4325.0,0.7431]
[1757028799284,0.7108,4325.1,4325.0,0.238]
[1757028799474,0.7108,4325.1,4324.7,0.3025]
[1757028799675,0.1964,4324.6,4324.5,3.7328]
[1757028799881,0.492,4324.6,4324.5,4.20201]
[1757028800175,0.1964,4324.6,4324.5,4.50451]
[1757028800379,0.1964,4324.8,4324.7,0.4093]
[1757028800570,0.492,4324.8,4324.7,0.7118]
[1757028801084,0.6957,4324.7,4324.6,0.5092]
[1757028801278,0.6957,4324.7,4324.6,0.7118]
[1757028805378,0.6957,4324.7,4324.6,0.2026]
[1757028805686,0.517,4324.5,4324.4,0.7431]
[1757028805883,0.8126,4324.5,4324.4,0.7431]
[1757028806277,0.8126,4324.5,4324.4,0.9498]
[1757028806278,0.6957,4324.5,4324.4,0.9498]
[1757028807076,0.6957,4324.5,4324.4,0.4406]
[1757028807279,0.6957,4324.5,4324.4,0.9498]
[1757028808085,3.2078,4325.4,4324.9,0.3025]
[1757028808284,0.492,4325.0,4324.9,0.7118]
[1757028809286,0.1964,4325.0,4324.9,0.7118]
[1757028810186,0.492,4325.0,4324.9,0.7118]
[1757028812484,0.1964,4325.0,4324.9,0.7118]
[1757028812990,0.492,4325.0,4324.9,0.7118]
[1757028813886,0.492,4325.0,4324.9,0.94301999]
[1757028814088,0.2956,4325.9,4325.1,0.3025]
[1757028814287,0.1964,4325.9,4325.8,0.7118]
[1757028814989,3.9035,4326.3,4326.2,0.4093]
[1757028815188,3.9035,4326.3,4326.2,0.7118]
[1757028816386,3.2078,4326.3,4326.2,0.7118]
[1757028816587,3.3247,4327.0,4326.5,0.126]
[1757028816779,3.3247,4327.0,4326.7,0.7118]
[1757028816780,0.3119,4326.8,4326.7,0.7118]
[1757028816979,0.492,4326.8,4326.7,0.7118]
[1757028817489,0.6957,4326.8,4326.7,0.7118]
[1757028820983,0.6957,4326.8,4326.1,0.3025]
[1757028821180,0.4001,4326.3,4326.2,0.237]
[1757028821386,0.6957,4326.3,4326.2,0.7421]
[1757028821579,0.6957,4326.3,4326.2,0.9488]
[1757028824496,0.2956,4326.6,4326.2,0.9488]
[1757028824685,0.492,4326.6,4326.5,0.7118]
[1757028824885,0.1964,4326.6,4326.5,0.8378]
[1757028825292,0.492,4326.6,4326.5,0.8378]
[1757028825601,0.6957,4326.6,4326.5,0.8378]
[1757028826803,0.492,4326.6,4326.5,0.8378]
[1757028830501,0.6922,4326.6,4326.5,0.8378]
[1757028833307,0.6922,4326.6,4326.5,0.7118]
[1757028838115,0.492,4326.6,4326.5,0.7118]
[1757028838320,0.6426,4326.8,4326.7,0.4103]
[1757028838522,0.6426,4326.8,4326.7,0.7]
[1757028839526,0.1155,4326.8,4326.7,0.7]
[1757028839823,0.3222,4326.8,4326.7,0.7]
[1757028840718,0.1155,4326.8,4326.7,0.7]
[1757028843119,0.3222,4326.8,4326.7,0.7]
[1757028843320,0.6426,4326.8,4326.7,0.7]
[1757028843523,0.8428,4326.8,4326.7,0.7]
[1757028850022,0.8428,4326.8,4326.5,0.5257]
[1757028850228,0.7273,4326.6,4326.5,0.7274]
[1757028850417,0.7273,4326.6,4326.5,0.936]
[1757028851222,0.7273,4326.6,4326.5,1.0576]
[1757028858430,0.7273,4326.6,4326.5,0.936]
[1757028864939,0.4146,4326.3,4326.2,0.2906]
[1757028865131,0.7048,4326.3,4326.2,0.4906]
[1757028865729,0.7048,4326.3,4326.2,0.7003]
[1757028866038,0.5002,4326.3,4326.2,0.7003]
[1757028866938,0.21,4326.3,4326.2,0.7003]
[1757028867341,0.5002,4326.3,4326.2,0.7003]
[1757028868642,0.4057,4326.5,4326.3,0.2906]
[1757028868839,0.1155,4326.5,4326.4,0.7003]
[1757028869341,0.6157,4326.5,4326.4,0.7003]
[1757028869642,0.9358,4326.5,4326.4,0.4906]
[1757028870839,0.46214,4326.5,4326.0,0.236]
[1757028871040,0.7048,4326.1,4325.9,3.4438]
[1757028871340,0.4146,4325.8,4325.7,0.236]
[1757028871735,0.7048,4325.8,4325.7,0.236]
[1757028872331,0.7048,4325.8,4324.8,3.2078]
[1757028872534,0.7048,4325.4,4325.3,0.9363]
[1757028874740,0.2902,4325.9,4325.4,0.2906]
[1757028875041,0.7048,4325.9,4325.8,0.4906]
[1757028875242,0.7048,4325.9,4325.8,0.2]
[1757028875541,0.93597001,4325.9,4325.8,0.2]
[1757028875743,0.7048,4325.9,4325.8,0.4906]
[1757028876243,0.7048,4325.9,4325.4,0.2906]
[1757028876443,0.7048,4325.9,4325.3,0.236]
[1757028877843,0.2902,4325.8,4325.3,0.236]
[1757028878143,0.7048,4325.8,4325.7,0.4906]
[1757028879141,0.7048,4325.8,4325.7,0.2]
[1757028879749,0.7048,4325.8,4325.4,0.2906]
[1757028880046,0.8203,4325.5,4325.4,0.4906]
[1757028880345,0.7048,4325.5,4325.4,0.7003]
[1757028886144,3.2078,4326.0,4325.7,0.7003]
[1757028886444,3.708,4326.0,4325.9,0.7003]
[1757028887244,3.9126,4326.0,4325.9,0.7003]
[1757028887938,4.0361,4326.0,4325.9,0.7003]
[1757028888649,4.0361,4326.0,4325.9,0.2]
[1757028889247,4.0361,4326.0,4325.8,0.236]
[1757028890547,0.3987,4325.7,4325.6,0.236]
[1757028890754,0.708,4325.7,4325.6,0.236]
[1757028891850,0.708,4325.7,4325.3,0.3025]
[1757028892049,0.1235,4325.5,4325.4,0.236]
[1757028892248,0.8315,4325.5,4325.4,0.236]
[1757028894746,4.0393,4325.5,4324.7,0.3025]
[1757028894947,4.0393,4325.5,4324.8,0.236]
[1757028895151,0.708,4324.9,4324.8,0.9572]
[1757028897844,0.708,4324.9,4324.8,0.7212]
[1757028901256,0.708,4324.9,4324.8,0.5119]
[1757028902754,0.3987,4324.9,4324.4,0.3025]
[1757028902958,0.708,4324.6,4324.5,0.7479]
[1757028903657,0.4328,4324.5,4324.3,3.2078]
[1757028903962,0.4328,4324.5,4324.2,0.3025]
[1757028903963,0.3093,4324.3,4324.2,0.7479]
[1757028904149,0.708,4324.3,4324.2,0.9572]
[1757028904753,0.5141,4324.3,4324.2,0.9572]
[1757028904949,0.2048,4324.3,4324.2,0.9572]
[1757028905358,0.5141,4324.3,4324.2,0.9572]
[1757028905859,0.2048,4324.3,4324.2,0.9572]
[1757028906449,0.5141,4324.3,4324.2,0.9572]
[1757028906761,0.708,4324.3,4324.2,0.9572]
[1757028908256,0.708,4324.3,4324.2,0.5119]
[1757028908564,0.708,4324.0,4323.9,0.7212]
[1757028908760,0.708,4324.0,4323.9,0.9572]
[1757028909863,0.8315,4324.0,4323.9,0.5119]
[1757028910058,0.3093,4323.9,4323.7,0.5385]
[1757028910267,0.708,4323.8,4323.7,0.7479]
[1757028913564,0.3093,4323.7,4323.2,3.5103]
[1757028913867,0.5141,4323.6,4323.5,0.8446]
[1757028914062,0.1235,4323.5,4323.4,0.2094]
[1757028914268,3.8456,4324.0,4323.9,0.2094]
[1757028914664,4.1549,4324.0,4323.9,0.2094]
[1757028914871,4.1549,4324.0,4323.9,0.5119]
[1757028915767,4.1549,4324.0,4323.6,0.3025]
[1757028916071,4.1549,4324.0,4323.5,0.236]
[1757028916072,4.0314,4324.0,4323.9,0.7212]
[1757028916267,3.3234,4324.0,4323.9,0.7212]
[1757028916461,0.1156,4324.0,4323.9,0.7212]
[1757028916665,0.3204,4324.0,4323.9,0.7212]
[1757028916867,0.6297,4324.0,4323.9,0.7212]
[1757028917975,0.1156,4324.0,4323.9,0.7212]
[1757028918669,0.1156,4324.0,4323.9,0.9572]
[1757028919274,0.6151,4324.0,4323.9,0.9572]
[1757028920872,0.8086,4324.0,4323.9,0.9572]
[1757028921875,0.3121,4324.0,4323.9,0.9572]
[1757028922073,0.1156,4324.0,4323.9,0.9572]
[1757028923274,0.8086,4324.0,4323.9,0.7212]
[1757028923872,0.1156,4324.0,4323.9,0.7212]
[1757028924973,0.3121,4324.0,4323.9,0.7212]
[1757028925775,0.1965,4324.0,4323.9,0.7212]
[1757028928580,0.5056,4324.2,4324.1,0.7004]
[1757028928775,0.8086,4324.2,4324.1,0.9364]
[1757028929474,0.5056,4324.2,4323.8,3.2078]
[1757028929670,0.8204,4324.0,4323.7,0.236]
[1757028930071,0.5174,4324.0,4323.4,3.2078]
[1757028930274,0.8204,4323.5,4323.4,3.2078]
[1757028930573,0.8204,4323.5,4323.4,3.4438]
[1757028930768,0.8204,4323.5,4323.0,0.2904]
[1757028931079,0.8204,4323.5,4323.4,0.236]
[1757028931681,0.8204,4323.5,4323.4,0.9364]
[1757028932069,0.693,4323.5,4323.4,0.4491]
[1757028932270,4.5174,4323.5,4322.9,3.2078]
[1757028932471,0.8204,4323.0,4322.9,3.2078]
[1757028932680,0.8204,4323.0,4322.9,3.6569]
[1757028932889,0.8204,4323.0,4322.9,3.9473]
[1757028933181,0.8204,4323.0,4322.9,3.2078]
[1757028933382,0.8204,4323.0,4322.7,0.236]
[1757028934079,0.8204,4323.0,4322.8,0.41180994]
[1757028934288,0.693,4322.9,4322.8,0.41180994]
[1757028936089,0.693,4322.9,4322.8,1.11220994]
[1757028936388,0.693,4322.9,4322.8,0.17580994]
[1757028936584,0.693,4322.9,4322.8,0.67930994]
[1757028936790,0.693,4322.9,4322.8,0.87620994]
[1757028936981,0.693,4322.9,4322.8,0.38890994]
[1757028937684,0.693,4322.9,4322.8,0.17580994]
[1757028937886,7.9008,4322.9,4322.8,0.17580994]
[1757028938276,8.13213,4322.9,4322.8,0.17580994]
[1757028938479,7.9008,4322.9,4322.8,0.17580994]
[1757028944501,8.1368,4322.9,4322.8,0.17580994]
[1757028945703,4.1368,4322.9,4322.8,0.17580994]
[1757028947000,8.1368,4322.9,4321.9,0.2904]
[1757028947198,0.303,4321.9,4321.7,0.2904]
[1757028947399,0.303,4321.9,4321.1,3.6178]
[1757028947599,0.303,4321.8,4321.1,3.6178]
[1757028947798,0.303,4321.8,4321.2,0.3158]
[1757028948000,0.7105,4321.8,4321.7,0.524]
[1757028948199,0.2976,4321.7,4321.2,0.3158]
[1757028948404,0.5101,4321.3,4321.2,0.7202]
[1757028948701,0.2125,4321.3,4321.2,0.7202]
[1757028949499,0.2976,4321.9,4321.5,0.524]
[1757028949701,0.236,4322.2,4321.5,0.524]
[1757028949899,0.2976,4322.3,4321.5,0.524]
[1757028950107,0.2125,4321.7,4321.6,0.7202]
[1757028950699,0.2976,4322.3,4321.6,0.4044]
[1757028950901,0.7051,4322.3,4322.2,0.2082]
[1757028951101,0.7051,4322.3,4322.2,0.524]
[1757028951804,0.7051,4322.3,4322.2,0.7202]
[1757028952707,0.2125,4322.3,4322.2,0.7202]
[1757028954305,0.7051,4322.3,4322.2,0.7202]
[1757028956407,0.2976,4322.2,4321.7,0.3158]
[1757028956610,0.2125,4321.8,4321.7,0.7202]
[1757028957000,0.2125,4322.1,4322.0,0.8398]
[1757028957301,3.5054,4322.4,4322.1,0.3158]
[1757028957502,0.2125,4322.2,4322.1,0.7202]
[1757028958411,3.2078,4322.4,4322.1,0.4044]
[1757028958606,3.4203,4322.4,4322.3,0.4044]
[1757028958802,3.9129,4322.4,4322.3,0.7202]
[1757028959003,3.6153,4322.4,4322.3,0.7202]
[1757028960301,3.9129,4322.4,4322.3,0.7202]
[1757028961209,0.7051,4321.8,4321.7,0.524]
[1757028961513,0.7051,4321.8,4321.7,0.7202]
[1757028961806,0.4075,4321.8,4321.7,0.7202]
[1757028962006,0.2976,4322.1,4321.8,0.3158]
[1757028962209,3.4438,4322.4,4321.8,0.7202]
[1757028962210,0.7051,4321.9,4321.8,0.7202]
[1757028963009,0.4075,4321.9,4321.8,0.7202]
[1757028963208,0.7051,4321.9,4321.8,0.7202]
[1757028964405,3.9129,4321.9,4321.6,0.3158]
[1757028965105,3.9129,4321.9,4321.8,0.524]
[1757028965305,3.9129,4321.9,4321.3,0.3158]
[1757028965809,3.9129,4321.9,4321.8,0.524]
[1757028966110,3.9129,4321.9,4321.8,0.7202]
[1757028966408,3.9129,4321.9,4321.0,0.1213]
[1757028966409,3.9129,4321.9,4321.3,0.236]
[1757028966605,3.9129,4321.9,4321.8,0.524]
[1757028967406,3.9129,4321.9,4321.8,0.7202]
[1757028968109,0.4485,4322.3,4322.2,0.7202]
[1757028968409,0.9411,4322.3,4322.2,0.7202]
[1757028970208,0.7051,4322.3,4322.2,0.7202]
[1757028970906,0.7051,4322.3,4321.5,0.1196]
[1757028971113,0.7051,4322.3,4322.2,0.2082]
[1757028971309,0.7051,4322.3,4322.2,0.524]
[1757028971814,0.7051,4322.3,4322.2,0.3158]
[1757028972013,0.7051,4322.3,4321.5,0.1196]
[1757028972313,0.7051,4322.3,4322.2,0.524]
[1757028972615,0.7051,4322.3,4321.6,0.3158]
[1757028974416,0.4075,4321.5,4321.4,3.928]
[1757028974916,0.7051,4321.5,4321.4,0.524]
[1757028975509,3.9129,4321.9,4321.8,0.4044]
[1757028975708,3.9129,4321.9,4321.8,0.3158]
[1757028975911,3.9129,4321.9,4321.2,0.236]
[1757028976215,3.9129,4321.9,4321.1,0.3158]
[1757028979317,0.714,4321.2,4321.1,0.3158]
[1757028979517,0.3016,4321.1,4321.0,0.236]
[1757028979815,0.1157,4321.5,4320.9,3.4171]
[1757028979816,0.714,4321.0,4320.9,3.4171]
[1757028980017,0.714,4321.0,4320.9,3.6233]
[1757028980215,0.714,4321.0,4320.9,3.9283]
[1757028981222,0.8297,4321.0,4320.6,0.305]
[1757028981514,0.3016,4320.9,4320.4,3.2078]
[1757028981722,0.714,4320.5,4320.4,3.414]
[1757028981910,0.8297,4320.5,4320.0,0.1196]
[1757028982106,0.4124,4320.5,4320.4,0.2062]
[1757028982311,0.4124,4320.5,4320.0,0.1196]
[1757028982312,0.5281,4320.5,4320.0,0.1196]
[1757028982719,0.714,4320.4,4320.3,0.5112]
[1757028984128,0.714,4320.4,4320.1,0.305]
[1757028984622,0.2127,4320.3,4320.2,0.2062]
[1757028984922,0.714,4320.3,4320.2,0.2062]
[1757028985124,0.714,4320.3,4320.2,0.7205]
[1757028986019,0.714,4320.3,4319.9,3.2078]
[1757028986020,0.714,4320.2,4320.1,0.5112]
[1757028986422,0.714,4320.2,4320.1,0.7205]
[1757028988431,0.714,4320.2,4320.1,0.5112]
[1757028988632,0.714,4320.2,4320.1,0.7205]
[1757028989930,0.1997,4320.2,4320.1,0.7205]
[1757028990125,3.2078,4320.4,4320.2,0.305]
[1757028990327,3.2078,4320.4,4320.3,0.7205]
[1757028990934,3.9218,4320.4,4320.3,0.7205]
[1757028993138,3.6202,4320.4,4320.3,0.7205]
[1757028995327,3.2078,4320.4,4320.3,0.7205]
[1757028995528,3.9218,4320.4,4320.3,0.7205]
[1757028996334,3.6202,4320.4,4320.3,0.7205]
[1757028997432,0.4124,4320.3,4320.2,0.7205]
[1757028997637,0.714,4320.3,4320.2,0.7205]
[1757028997936,0.4124,4320.3,4320.2,0.7205]
[1757028998138,0.714,4320.3,4320.2,0.7205]
[1757028998937,0.4124,4320.3,4320.2,0.7205]
[1757029002838,3.2078,4320.4,4320.2,0.4155]
[1757029003041,0.1157,4320.5,4320.4,0.4155]
[1757029003241,0.1157,4320.5,4320.4,0.7205]
[1757029003645,0.3154,4320.5,4320.4,0.7205]
[1757029005940,0.1157,4320.5,4320.4,0.7205]
[1757029008847,0.3129,4320.5,4320.4,0.7205]
[1757029009045,0.8314,4320.5,4320.4,0.7205]
[1757029009348,0.3129,4320.5,4320.4,0.7205]
[1757029009741,0.1157,4320.5,4320.4,0.7205]
[1757029014762,0.1157,4320.5,4320.4,0.9565]
[1757029019959,3.7098,4321.4,4321.3,0.3904]
[1757029020159,3.9235,4321.4,4321.3,0.7044]
[1757029020354,3.5126,4321.9,4321.4,0.314]
[1757029020560,0.502,4321.5,4321.4,0.7044]
[1757029020759,0.7157,4321.5,4321.4,0.7044]
[1757029023659,0.3048,4321.8,4321.5,0.127]
[1757029023859,0.7157,4321.8,4321.7,0.7044]
[1757029024961,0.1972,4321.8,4321.7,0.7044]
[1757029025159,3.2078,4321.9,4321.7,0.7044]
[1757029025359,0.7157,4322.3,4322.2,0.5105]
[1757029025554,0.7157,4322.3,4322.2,0.7044]
[1757029025762,0.23136,4322.9,4322.0,0.314]
[1757029025763,0.1157,4322.5,4322.0,0.314]
[1757029025966,0.1972,4321.6,4321.5,0.5174]
[1757029026566,0.1972,4321.6,4321.5,0.8314]
[1757029030367,3.2078,4321.9,4321.5,0.8314]
[1757029030574,3.5126,4321.9,4321.5,0.5174]
[1757029030775,3.7098,4321.9,4321.8,0.3904]
[1757029031066,3.9235,4321.9,4321.8,0.7044]
[1757029031273,3.6187,4321.9,4321.8,0.7044]
[1757029031762,3.9235,4321.9,4321.8,0.7044]
[1757029032269,0.7157,4321.9,4321.8,0.7044]
[1757029033870,0.7157,4321.9,4321.8,0.5105]
[1757029035069,0.7157,4321.9,4321.8,0.7044]
[1757029036570,0.3048,4322.3,4321.8,0.3904]
[1757029036773,0.7157,4322.3,4322.2,0.3904]
[1757029037065,0.7157,4322.3,4322.2,0.7044]
[1757029037468,3.8547,4322.9,4322.8,0.3904]
[1757029037671,4.1595,4322.9,4322.8,0.7044]
[1757029037970,3.9235,4322.9,4322.8,0.7044]
[1757029039167,3.9235,4322.9,4322.8,0.5105]
[1757029039365,3.9235,4322.9,4322.8,0.707]
[1757029039366,3.6187,4322.9,4322.8,0.707]
[1757029039759,3.9153,4322.9,4322.8,0.707]
[1757029040065,7.9153,4322.9,4322.1,0.2971]
[1757029040268,3.9153,4322.9,4322.1,0.2971]
[1757029042372,0.6914,4322.2,4321.7,0.236]
[1757029042562,0.3948,4321.6,4321.5,0.5176]
[1757029042766,0.6914,4321.6,4321.5,0.5176]
[1757029043168,0.6914,4321.6,4321.5,0.8147]
[1757029043370,0.3948,4321.6,4321.5,0.8147]
[1757029045672,0.2023,4321.6,4321.5,0.8147]
[1757029045869,3.2078,4321.9,4321.5,0.5176]
[1757029046070,3.4101,4321.9,4321.8,0.3906]
[1757029046271,3.4101,4321.9,4321.8,0.6877]
[1757029046576,3.8992,4321.9,4321.8,0.6877]
[1757029047881,3.6026,4322.5,4322.4,0.3906]
[1757029048073,3.8992,4322.5,4322.0,0.1197]
[1757029048273,4.0149,4322.5,4321.7,0.2971]
[1757029048670,4.0149,4322.5,4321.3,0.4912]
[1757029048671,0.6914,4321.4,4321.3,0.4912]
[1757029049270,0.6914,4321.4,4321.3,0.6877]
[1757029050480,0.3948,4321.4,4321.3,0.6877]
[1757029051181,0.6914,4321.4,4321.3,0.6877]
[1757029052481,0.3948,4321.4,4321.3,0.6877]
[1757029052687,0.2023,4321.4,4321.3,0.6877]
[1757029052875,0.2966,4321.7,4321.6,0.1941]
[1757029053075,0.4989,4321.7,4321.6,0.6877]
[1757029053279,3.5044,4322.3,4321.7,0.2971]
[1757029053482,3.8992,4322.3,4322.2,0.4912]
[1757029054474,3.8992,4322.3,4321.5,0.1197]
[1757029054475,3.8992,4322.3,4321.6,0.2971]
[1757029055687,3.8992,4322.3,4322.2,0.1941]
[1757029055987,3.8992,4322.3,4322.2,0.4912]
[1757029056489,3.2078,4322.3,4322.2,0.6877]
[1757029059586,0.2966,4322.8,4322.3,0.2971]
[1757029059885,0.2966,4322.8,4322.4,0.2971]
[1757029060090,3.6026,4322.9,4322.8,0.4912]
[1757029060287,3.6026,4322.9,4322.1,3.2078]
[1757029060488,0.1157,4322.5,4321.7,3.1092896]
[1757029060686,0.6914,4321.9,4321.8,0.6877]
[1757029061788,0.2966,4322.4,4321.9,0.2971]
[1757029061993,0.6914,4322.4,4322.3,0.3906]
[1757029062191,0.6914,4322.4,4322.3,0.6877]
[1757029065187,0.6914,4322.4,4322.3,0.4912]
[1757029067396,0.6914,4322.4,4322.3,0.6877]
[1757029068389,3.2078,4322.9,4322.3,0.3906]
[1757029068390,3.5116,4322.9,4322.3,0.3906]
[1757029068594,3.5116,4322.9,4322.4,0.2895]
[1757029068897,0.2012,4322.5,4322.4,0.6822]
[1757029069197,0.7156,4322.5,4322.4,0.6822]
[1757029069897,0.4118,4322.5,4322.4,0.6822]
[1757029070589,0.2012,4322.5,4322.4,0.6822]
[1757029070795,3.9234,4322.9,4322.8,0.6822]
[1757029073292,0.7156,4322.9,4322.8,0.6822]
[1757029075394,0.4118,4322.9,4322.8,0.6822]
[1757029075589,0.2012,4322.9,4322.8,0.6822]
[1757029075804,0.505,4323.2,4323.1,0.3927]
[1757029076098,0.2012,4323.2,4323.1,0.6822]
[1757029076300,0.4118,4323.2,4323.1,0.6822]
[1757029076501,0.7156,4323.2,4323.1,0.6822]
[1757029080001,0.2012,4323.2,4323.1,0.6822]
[1757029080196,3.2078,4323.4,4323.2,0.2895]
[1757029080398,3.2078,4323.4,4323.3,0.6822]
[1757029081303,3.409,4323.4,4323.3,0.6822]
[1757029082608,0.2012,4323.4,4323.3,0.6822]
[1757029083111,0.2012,4323.7,4323.6,0.6822]
[1757029083706,3.5116,4324.1,4323.6,0.6822]
[1757029083914,3.9234,4324.1,4324.0,0.8023]
[1757029084513,3.6196,4324.1,4324.0,0.8023]
[1757029084716,0.4118,4324.1,4324.0,0.8023]